fUST/lending_fUST_20250813
["ID","MTS","AMOUNT","RATE_DAILY","PERIOD"]
[378823117,1755037847557,-1005.53108855,0.00023721,2]
[378823119,1755037847567,-1000.0,0.00023721,2]
[378823121,1755037847576,-1000.0,0.00023721,2]
[378823123,1755037847585,-644.55624493,0.00023721,2]
[378823125,1755037847595,-1000.0,0.00023721,2]
[378823127,1755037847605,-1000.0,0.00023721,2]
[378823129,1755037847614,-500.0,0.00023721,2]
[378823131,1755037847623,-1000.0,0.00023721,2]
[378823133,1755037847633,-1091.51019832,0.00023721,2]
[378823135,1755037847643,-1000.0,0.00023721,2]
[378823137,1755037847653,-1000.0,0.00023721,2]
[378823139,1755037847663,-1000.0,0.00023721,2]
[378823152,1755037847787,-1000.0,0.00023721,2]
[378823154,1755037847797,-1000.0,0.00023721,2]
[378823156,1755037847807,-1000.0,0.00023721,2]
[378823158,1755037847816,-1002.77267564,0.00023721,2]
[378823160,1755037847826,-1000.0,0.00023721,2]
[378823162,1755037847835,-1000.0,0.00023721,2]
[378823164,1755037847844,-512.97111923,0.00023721,2]
[378823166,1755037847855,-508.43518532,0.00023721,2]
[378823168,1755037847864,-545.96642054,0.00023721,2]
[378823170,1755037847873,-1000.0,0.00023721,2]
[378823171,1755037847882,-515.7482093,0.00023721,2]
[378823173,1755037847892,-1000.0,0.00023721,2]
[378823175,1755037847901,-665.11377929,0.00023721,2]
[378823177,1755037847910,-1000.0,0.00023721,2]
[378823179,1755037847920,-196.670088,0.00023721,7]
[378823181,1755037847929,-7786.90000643,0.00023729,2]
[378823183,1755037847938,-2445.00241666,0.00023734,2]
[378823186,1755037847956,-13476.38983799,0.00023734,2]
[378823188,1755037847965,-12713.24007364,0.0002375,2]
[378823240,1755037848495,-160.0,0.00021502,2]
[378823242,1755037848505,-271.798633,0.000232,7]
[378823244,1755037848515,-151.0,0.000233,7]
[378823246,1755037848526,-151.0,0.00023721,7]
[378823248,1755037848536,-3208.15218101,0.0002375,2]
[378823250,1755037848546,-162.65333618,0.00023753,2]
[378823252,1755037848556,-7786.90000643,0.00023765,2]
[378823254,1755037848566,-868.7638242,0.00023802,2]
[378823256,1755037848576,-168.0,0.00023817,2]
[378823258,1755037848585,-608.0,0.00023843,2]
[378823260,1755037848595,-944.0,0.00023843,2]
[378823261,1755037848604,-162.65333619,0.00023863,2]
[378823263,1755037848614,-298.271,0.00023866,5]
[378823265,1755037848623,-151.0,0.000239,10]
[378823267,1755037848633,-647.65742652,0.000239,2]
[378823269,1755037848642,-560.0,0.00023915,2]
[378823271,1755037848652,-162.65333618,0.00023945,2]
[378823273,1755037848662,-168.0,0.00023957,2]
[378823275,1755037848672,-168.0,0.00023987,2]
[378823277,1755037848682,-215.52532928,0.00024,3]
[378823279,1755037848695,-160.0,0.00024,7]
[378823281,1755037848705,-160.0,0.00024,7]
[378823283,1755037848715,-160.0,0.00024,10]
[378823285,1755037848725,-216.70963917,0.00024,7]
[378823286,1755037848735,-160.0,0.00024,7]
[378823288,1755037848744,-160.0,0.00024,7]
[378823290,1755037848753,-160.0,0.00024,7]
[378823292,1755037848762,-843.25559725,0.00024,7]
[378823294,1755037848774,-232.0176383,0.00024,7]
[378823296,1755037848784,-1700.33420565,0.00024,2]
[378823298,1755037848794,-323.14246916,0.00024,2]
[378823300,1755037848803,-181.72263959,0.00024,7]
[378823302,1755037848813,-215.52532928,0.00024,3]
[378823304,1755037848822,-160.0,0.00024,7]
[378823306,1755037848832,-160.0,0.00024,10]
[378823308,1755037848841,-160.0,0.00024,7]
[378823310,1755037848850,-358.35952872,0.00024027,2]
[378823312,1755037848859,-151.0,0.00024107,4]
[378823314,1755037848869,-162.65333618,0.0002411,2]
[378823316,1755037848878,-608.0,0.00024117,2]
[378823318,1755037848887,-944.0,0.00024117,2]
[378823320,1755037848896,-857.07914186,0.00024164,2]
[378823322,1755037848906,-169.0,0.00024164,7]
[378823323,1755037848915,-2500.0,0.00024164,2]
[378823325,1755037848925,-2500.0,0.00024164,2]
[378823327,1755037848934,-2500.0,0.00024164,2]
[378823329,1755037848944,-510.0,0.00024164,7]
[378823331,1755037848954,-151.0,0.000242,5]
[378823333,1755037848963,-3516.33,0.00024212,4]
[378823335,1755037848973,-1760.0,0.00024233,3]
[378823337,1755037848983,-1169.40384014,0.00024233,3]
[378823351,1755037849113,-590.59615986,0.00024233,3]
[378823353,1755037849133,-1500.0,0.00024268,2]
[378823355,1755037849144,-562.49809899,0.00024268,2]
[378823357,1755037849162,-1000.0,0.00024268,2]
[378823359,1755037849172,-1000.00000001,0.00024268,2]
[378823361,1755037849182,-186.18187767,0.00024268,2]
[378823363,1755037849191,-1000.0,0.00024268,2]
[378823365,1755037849200,-1500.0,0.00024268,2]
[378823367,1755037849210,-1257.90730388,0.00024268,2]
[378823369,1755037849219,-591.6405598,0.00024268,2]
[378823371,1755037849228,-1500.0,0.00024268,2]
[378823373,1755037849237,-1500.0,0.00024268,2]
[378823375,1755037849246,-1500.0,0.00024268,2]
[378823376,1755037849255,-1500.0,0.00024268,2]
[378823377,1755037849264,-1500.0,0.00024268,2]
[378823378,1755037849274,-1500.0,0.00024268,2]
[378823379,1755037849283,-1500.0,0.00024268,2]
[378823380,1755037849292,-237.51074959,0.00024268,2]
[378823381,1755037849301,-504.81258294,0.00024268,2]
[378823382,1755037849313,-995.18741706,0.00024268,2]
[378823383,1755037849322,-18502.69577858,0.0002428,2]
[378823384,1755037849333,-151.0,0.0002428,2]
[378823385,1755037849342,-151.0,0.0002428,7]
[378823386,1755037849351,-218.196268,0.0002428,7]
[378823387,1755037849359,-218.196268,0.0002428,7]
[378823388,1755037849368,-233.282969,0.0002428,7]
[378823389,1755037849377,-151.0,0.0002428,7]
[378823390,1755037849386,-352.687554,0.0002428,7]
[378823391,1755037849395,-352.687554,0.0002428,7]
[378823392,1755037849405,-210.792876,0.0002428,7]
[378823393,1755037849414,-500.0,0.000243,2]
[378823394,1755037849423,-162.65333618,0.00024301,2]
[378823395,1755037849432,-168.0,0.00024308,2]
[378823396,1755037849441,-271.0,0.0002437,7]
[378823398,1755037849450,-500.0,0.00024373,2]
[378823400,1755037849460,-500.0,0.00024373,2]
[378823402,1755037849469,-500.0,0.00024373,2]
[378823404,1755037849479,-500.0,0.00024373,2]
[378823406,1755037849488,-157.06970312,0.00024373,2]
[378823408,1755037849497,-300.0,0.00024373,2]
[378823410,1755037849507,-608.0,0.00024391,2]
[378823412,1755037849515,-944.0,0.00024391,2]
[378823414,1755037849525,-153.0,0.00024393,2]
[378823416,1755037849534,-153.0,0.00024393,2]
[378823418,1755037849543,-153.0,0.00024393,2]
[378823420,1755037849552,-153.0,0.00024393,2]
[378823423,1755037849562,-153.0,0.00024393,2]
[378823425,1755037849571,-153.0,0.00024393,2]
[378823427,1755037849580,-153.0,0.00024393,2]
[378823428,1755037849589,-153.0,0.00024393,2]
[378823430,1755037849598,-153.0,0.00024393,2]
[378823432,1755037849607,-153.0,0.00024393,2]
[378823434,1755037849617,-153.0,0.00024393,2]
[378823436,1755037849626,-153.0,0.00024393,2]
[378823438,1755037849635,-153.0,0.00024393,2]
[378823441,1755037849645,-153.0,0.00024393,2]
[378823442,1755037849655,-153.0,0.00024393,2]
[378823444,1755037849665,-153.0,0.00024393,2]
[378823446,1755037849674,-153.0,0.00024393,2]
[378823448,1755037849685,-153.0,0.00024393,2]
[378823450,1755037849702,-153.0,0.00024393,2]
[378823452,1755037849711,-153.0,0.00024393,2]
[378823454,1755037849721,-153.0,0.00024393,2]
[378823456,1755037849730,-153.0,0.00024393,2]
[378823458,1755037849739,-153.0,0.00024393,2]
[378823460,1755037849748,-153.0,0.00024393,2]
[378823462,1755037849757,-153.0,0.00024393,2]
[378823477,1755037849884,-153.0,0.00024393,2]
[378823479,1755037849895,-153.0,0.00024393,2]
[378823481,1755037849905,-153.0,0.00024393,2]
[378823483,1755037849915,-153.0,0.00024393,2]
[378823485,1755037849924,-153.0,0.00024393,2]
[378823487,1755037849934,-153.0,0.00024393,2]
[378823489,1755037849943,-153.0,0.00024393,2]
[378823491,1755037849952,-153.0,0.00024393,2]
[378823493,1755037849962,-153.0,0.00024393,2]
[378823495,1755037849971,-153.0,0.00024393,2]
[378823497,1755037849980,-153.0,0.00024393,2]
[378823499,1755037849990,-153.0,0.00024393,2]
[378823501,1755037850000,-153.0,0.00024393,2]
[378823503,1755037850009,-153.0,0.00024393,2]
[378823505,1755037850019,-153.0,0.00024393,2]
[378823507,1755037850028,-153.0,0.00024393,2]
[378823509,1755037850037,-153.0,0.00024393,2]
[378823511,1755037850047,-153.0,0.00024393,2]
[378823513,1755037850056,-153.0,0.00024393,2]
[378823515,1755037850066,-153.0,0.00024393,2]
[378823517,1755037850075,-153.0,0.00024393,2]
[378823519,1755037850084,-153.0,0.00024393,2]
[378823521,1755037850094,-153.0,0.00024393,2]
[378823523,1755037850103,-153.0,0.00024393,2]
[378823525,1755037850112,-153.0,0.00024393,2]
[378823527,1755037850121,-153.0,0.00024393,2]
[378823529,1755037850130,-153.0,0.00024393,2]
[378823530,1755037850139,-153.0,0.00024393,2]
[378823533,1755037850150,-153.0,0.00024393,2]
[378823534,1755037850159,-153.0,0.00024393,2]
[378823536,1755037850169,-153.0,0.00024393,2]
[378823538,1755037850178,-153.0,0.00024393,2]
[378823540,1755037850188,-153.0,0.00024393,2]
[378823542,1755037850197,-153.0,0.00024393,2]
[378823544,1755037850206,-153.0,0.00024393,2]
[378823546,1755037850215,-153.0,0.00024393,2]
[378823548,1755037850225,-153.0,0.00024393,2]
[378823550,1755037850234,-153.0,0.00024393,2]
[378823552,1755037850244,-153.0,0.00024393,2]
[378823554,1755037850253,-153.0,0.00024393,2]
[378823556,1755037850262,-153.0,0.00024393,2]
[378823558,1755037850271,-153.0,0.00024393,2]
[378823560,1755037850281,-153.0,0.00024393,2]
[378823562,1755037850290,-153.0,0.00024393,2]
[378823564,1755037850299,-153.0,0.00024393,2]
[378823566,1755037850308,-153.0,0.00024393,2]
[378823568,1755037850317,-153.0,0.00024393,2]
[378823569,1755037850327,-153.0,0.00024393,2]
[378823571,1755037850337,-153.0,0.00024393,2]
[378823573,1755037850346,-153.0,0.00024393,2]
[378823575,1755037850355,-153.0,0.00024393,2]
[378823577,1755037850365,-153.0,0.00024393,2]
[378823579,1755037850375,-153.0,0.00024393,2]
[378823581,1755037850384,-153.0,0.00024393,2]
[378823583,1755037850394,-153.0,0.00024393,2]
[378823585,1755037850404,-153.0,0.00024393,2]
[378823587,1755037850413,-153.0,0.00024393,2]
[378823589,1755037850422,-153.0,0.00024393,2]
[378823591,1755037850431,-153.0,0.00024393,2]
[378823593,1755037850440,-153.0,0.00024393,2]
[378823595,1755037850450,-153.0,0.00024393,2]
[378823597,1755037850459,-153.0,0.00024393,2]
[378823599,1755037850469,-153.0,0.00024393,2]
[378823601,1755037850479,-153.0,0.00024393,2]
[378823603,1755037850488,-153.0,0.00024393,2]
[378823605,1755037850497,-153.0,0.00024393,2]
[378823607,1755037850506,-153.0,0.00024393,2]
[378823609,1755037850515,-153.0,0.00024393,2]
[378823611,1755037850524,-153.0,0.00024393,2]
[378823613,1755037850534,-153.0,0.00024393,2]
[378823615,1755037850543,-153.0,0.00024393,2]
[378823617,1755037850552,-153.0,0.00024393,2]
[378823619,1755037850562,-153.0,0.00024393,2]
[378823621,1755037850571,-153.0,0.00024393,2]
[378823623,1755037850580,-153.0,0.00024393,2]
[378823625,1755037850589,-153.0,0.00024393,2]
[378823627,1755037850598,-153.0,0.00024393,2]
[378823629,1755037850607,-153.0,0.00024393,2]
[378823631,1755037850617,-153.0,0.00024393,2]
[378823633,1755037850627,-153.0,0.00024393,2]
[378823635,1755037850636,-153.0,0.00024393,2]
[378823637,1755037850646,-549.132121,0.00024393,7]
[378823639,1755037850657,-549.132121,0.00024393,7]
[378823641,1755037850666,-224.090757,0.00024393,7]
[378823643,1755037850675,-224.090757,0.00024393,7]
[378823645,1755037850686,-200.0,0.00024398,15]
[378823647,1755037850699,-200.0,0.00024398,15]
[378823649,1755037850708,-200.0,0.00024398,15]
[378823651,1755037850717,-200.0,0.00024398,15]
[378823653,1755037850727,-200.0,0.00024398,15]
[378823655,1755037850738,-200.0,0.00024398,15]
[378823657,1755037850747,-200.0,0.00024398,15]
[378823659,1755037850756,-200.0,0.00024398,15]
[378823662,1755037850773,-358.0,0.00024398,15]
[378823663,1755037850783,-17134.73819265,0.000244,7]
[378826356,1755038637278,159.968117,0.00013699,2]
[378826357,1755038875931,200.0,0.0001784,2]
[378826455,1755039032058,-590.46842524,0.000189,2]
[378826457,1755039032070,-303.23650385,0.000189,2]
[378826459,1755039032080,-303.23650385,0.00019089,2]
[378826461,1755039032090,-303.23650385,0.00019278,2]
[378826462,1755039032100,-1200.0,0.0001943,2]
[378826463,1755039032110,-300.0,0.0001943,2]
[378826464,1755039032119,-5511.82786624,0.00019431,2]
[378826494,1755039038050,-1352.03187482,0.00019431,2]
[378826502,1755039040083,-1343.95588194,0.00019431,2]
[378826504,1755039040095,-16692.184377,0.00019431,2]
[378826505,1755039040104,-303.23650385,0.00019467,2]
[378826506,1755039040114,-303.23650385,0.00019656,2]
[378826507,1755039040123,-806.37955226,0.000198,2]
[378826508,1755039040133,-454.85475578,0.00019845,4]
[378826509,1755039040142,-307.34062,0.00019863,2]
[378826510,1755039040151,-335.7630001,0.00019899,2]
[378826511,1755039040160,-152.3743401,0.00019899,2]
[378826512,1755039040170,-500.0,0.00019899,2]
[378826513,1755039040179,-228.6484127,0.00019899,2]
[378826514,1755039040189,-424.85996228,0.00019899,2]
[378826515,1755039040198,-500.0,0.00019899,2]
[378826516,1755039040207,-2514.07122601,0.000199,2]
[378828361,1755039566167,161.995137,0.00013699,2]
[378828462,1755040232413,-393.64561683,0.000189,2]
[378828464,1755040232422,-300.0,0.00019032,2]
[378828466,1755040232432,-2000.4536657,0.00019033,2]
[378828468,1755040232443,-6386.56329922,0.00019033,2]
[378828470,1755040232557,-587.25809337,0.00019033,2]
[378828512,1755040238231,-1224.88555491,0.00019033,2]
[378828524,1755040238393,-303.23650385,0.000189,2]
[378828527,1755040238405,-6305.87194496,0.00019033,2]
[378829104,1755040497257,164.075324,0.00013699,2]
[378829106,1755040913078,41835.0,0.00021,30]
[378829107,1755040932917,211.2489854,0.00017716,2]
[378829108,1755040957059,10000.0,0.0001784,2]
[378829109,1755041059466,3829.0,0.0001784,2]
[378829118,1755041334071,3645.8329866,0.00017811,2]
[378829119,1755041334095,20000.0,0.00017811,2]
[378829120,1755041334118,1254.1670134,0.00017811,2]
[378829175,1755041432759,-183.079199,0.00017857,2]
[378829177,1755041432771,-300.0,0.00018799,2]
[378829178,1755041432780,-300.0,0.00018799,2]
[378829179,1755041432792,-300.0,0.00018799,2]
[378829180,1755041432801,-283.0,0.00018799,2]
[378829181,1755041432812,-300.0,0.00018799,2]
[378829182,1755041432821,-1200.0,0.00018799,2]
[378829183,1755041432831,-8262.3198795,0.000188,2]
[378829184,1755041432840,-784.03881254,0.000189,2]
[378829185,1755041432850,-200.0,0.00018951,15]
[378829186,1755041432859,-200.0,0.00018951,15]
[378829188,1755041432869,-200.0,0.00018951,15]
[378829190,1755041432878,-200.0,0.00018951,15]
[378829192,1755041432887,-2000.0,0.00019033,2]
[378829194,1755041432898,-460.0,0.00019033,2]
[378829196,1755041432907,-500.0,0.0001905,2]
[378829198,1755041432917,-500.0,0.0001905,2]
[378829200,1755041432927,-500.0,0.0001905,2]
[378829201,1755041432936,-500.0,0.0001908,2]
[378829202,1755041432946,-500.0,0.0001908,2]
[378829203,1755041432956,-500.0,0.0001908,2]
[378829204,1755041432965,-500.0,0.0001908,2]
[378829205,1755041432974,-500.0,0.0001908,2]
[378829206,1755041432984,-500.0,0.0001908,2]
[378829207,1755041432994,-500.0,0.0001908,2]
[378829208,1755041433003,-500.0,0.0001908,2]
[378829209,1755041433013,-500.0,0.000191,2]
[378829210,1755041433022,-5000.0,0.00019178,2]
[378829211,1755041433031,-5000.0,0.00019178,2]
[378829212,1755041433041,-666.0,0.00019178,2]
[378829213,1755041433051,-1000.0,0.00019598,2]
[378829214,1755041433060,-500.0,0.00019598,2]
[378829215,1755041433069,-500.0,0.00019598,2]
[378829216,1755041433078,-1000.0,0.00019628,2]
[378829217,1755041433088,-508.392613,0.00019863,2]
[378829218,1755041433097,-2562.72027593,0.000199,2]
[378829219,1755041433107,-6718.43505511,0.000199,2]
[378829249,1755041438522,-160.0,0.00018577,2]
[378829251,1755041438532,-472.47425679,0.000199,2]
[378829253,1755041438545,-43555.11290439,0.000199,2]
[378829255,1755041438554,-160.0,0.0002,3]
[378829257,1755041438564,-246.22696962,0.0002,7]
[378829259,1755041438573,-500.0,0.0002,2]
[378829261,1755041438583,-500.0,0.0002,3]
[378829263,1755041438592,-1500.0,0.00020146,2]
[378829265,1755041438601,-1500.0,0.00020176,2]
[378829267,1755041438611,-500.0,0.000202,2]
[378829269,1755041438620,-300.9115811,0.00020357,2]
[378829271,1755041438629,-420.0,0.00020495,2]
[378829273,1755041438639,-3369.81,0.00020547,2]
[378829275,1755041438648,-164.075324,0.00020548,2]
[378829277,1755041438658,-395.0,0.00020595,2]
[378829279,1755041438667,-640.28137352,0.00020643,2]
[378829281,1755041438676,-225.80166929,0.00020643,2]
[378829283,1755041438685,-454.85475578,0.00020644,4]
[378829285,1755041438696,-454.85475578,0.00020644,4]
[378829287,1755041438706,-5230.41692242,0.00020684,10]
[378829289,1755041438717,-387.55309699,0.00020684,10]
[378829292,1755041438737,-4131.60998059,0.00020684,10]
[378829294,1755041438746,-2000.0,0.00020694,2]
[378829296,1755041438755,-598.34249651,0.00020711,2]
[378829299,1755041438765,-1591.58540945,0.00020713,7]
[378829301,1755041438778,-300.0,0.00020713,7]
[378829478,1755041440481,-250.0,0.00019609,2]
[378829480,1755041440491,-213.13746388,0.00020713,7]
[378829824,1755041443958,-475.12280771,0.00020713,7]
[378830888,1755041803727,1208.0,0.00030136,120]
[378830890,1755041888915,164.359972,0.00013699,2]
[378830891,1755042129886,2081.91330096,0.00030136,120]
[378830925,1755042348217,2145.19983872,0.00017784,5]
[378830987,1755042632713,-426.18,0.00018889,2]
[378831060,1755042638468,-773.82,0.00018889,2]
[378831062,1755042638478,-300.0,0.00018889,2]
[378831064,1755042638488,-300.0,0.00018889,2]
[378831066,1755042638497,-129.6724096,0.0001889,2]
[378831068,1755042638508,-14204.97516651,0.0001889,2]
[378831071,1755042638526,-2111.46763559,0.0001889,2]
[378831073,1755042638536,-283.9952991,0.00019178,2]
[378831075,1755042638546,-200.0,0.00019267,15]
[378831077,1755042638555,-200.0,0.00019267,15]
[378831079,1755042638565,-200.0,0.00019267,15]
[378831080,1755042638574,-200.0,0.00019267,15]
[378831082,1755042638583,-640.004687,0.00019863,2]
[378831085,1755042638593,-1626.4834517,0.000199,2]
[378831087,1755042638602,-8998.04892661,0.000199,2]
[378831128,1755042640706,-2311.3743019,0.000199,2]
[378831129,1755042640717,-752.72382974,0.000199,2]
[378831130,1755042640728,-3305.77713982,0.000199,2]
[378831131,1755042640739,-881.05,0.000199,2]
[378831143,1755042646631,-648.3249717,0.000199,2]
[378831144,1755042646643,-1259.30593299,0.000199,2]
[378831146,1755042646720,-3157.4142529,0.000199,2]
[378831147,1755042646732,-11352.5299583,0.000199,2]
[378831149,1755042646743,-10029.41518863,0.000199,2]
[378831155,1755042862421,164.359972,0.00013699,2]
[378831158,1755043212165,1492.53,0.000288,120]
[378831159,1755043232500,200.0,0.00029924,120]
[378831160,1755043292334,200.0,0.00028995,120]
[378831161,1755043317338,3597.65715629,0.00030136,120]
[378831162,1755043351361,200.0,0.00029344,120]
[378831163,1755043411548,200.0,0.0002951,120]
[378831164,1755043471220,200.0,0.00029161,120]
[378831165,1755043523764,10000.0,0.00023,30]
[378831166,1755043533415,200.0,0.00029212,120]
[378831167,1755043591779,200.0,0.00029259,120]
[378831174,1755043692584,597.26688127,0.00017035,2]
[378831175,1755043694863,2389.06752508,0.00017035,2]
[378831176,1755043696875,5375.40193144,0.00017035,2]
[378831177,1755043711370,200.0,0.00028928,120]
[378831178,1755043716609,518.10368252,0.00017035,2]
[378831179,1755043718952,2072.41473007,0.00017035,2]
[378831180,1755043721100,4658.27020952,0.00017035,2]
[378831226,1755043771402,200.0,0.00028914,120]
[378831227,1755043830894,200.0,0.00027718,120]
[378831279,1755043837620,-453.27319388,0.00017912,2]
[378831281,1755043837630,-210.98137342,0.00017929,2]
[378831290,1755043837713,-89.01862658,0.00017929,2]
[378831292,1755043837722,-300.0,0.00017929,2]
[378831294,1755043837732,-300.0,0.00017929,2]
[378831296,1755043837742,-300.0,0.00017929,2]
[378831298,1755043837751,-271.14408644,0.00017929,2]
[378831301,1755043837764,-28.85591356,0.00017929,2]
[378831303,1755043837774,-1200.0,0.00017929,2]
[378831305,1755043837784,-631.94388874,0.0001796,2]
[378831306,1755043837794,-2525.24777941,0.0001796,2]
[378831308,1755043837803,-24900.0,0.00018247,2]
[378831310,1755043837813,-200.0,0.00018288,2]
[378831312,1755043837822,-200.0,0.00018288,2]
[378831314,1755043837832,-200.0,0.00018288,2]
[378831316,1755043837841,-200.0,0.00018288,2]
[378831318,1755043837850,-160.0,0.0001887,2]
[378831320,1755043837860,-500.0,0.00018874,2]
[378831322,1755043837869,-500.0,0.00018874,2]
[378831324,1755043837878,-500.0,0.00018874,2]
[378831326,1755043837888,-500.0,0.00018874,2]
[378831328,1755043837898,-541.21472583,0.00019488,2]
[378831330,1755043837908,-420.0,0.00019564,2]
[378831332,1755043837917,-300.0,0.00019564,2]
[378831334,1755043837926,-1423.0,0.0001966,2]
[378831336,1755043837936,-153.308708,0.0001981,2]
[378831338,1755043837945,-160.936614,0.0001981,2]
[378831340,1755043837954,-151.0,0.0001981,2]
[378831342,1755043837963,-151.0,0.0001981,2]
[378831344,1755043837973,-317.418798,0.0001981,2]
[378831346,1755043837982,-317.418798,0.0001981,2]
[378831348,1755043837991,-151.0,0.0001981,2]
[378831350,1755043838000,-6057.59035879,0.0001981,2]
[378831352,1755043838012,-2209.68720119,0.0001981,2]
[378831354,1755043838023,-651.00932369,0.0001981,2]
[378831356,1755043838035,-11766.23230274,0.0001981,2]
[378831358,1755043838044,-490.79340659,0.00019899,2]
[378831360,1755043838054,-500.0,0.00019899,2]
[378831362,1755043838064,-500.0,0.00019899,2]
[378831364,1755043838074,-500.0,0.00019899,2]
[378831367,1755043838084,-500.0,0.00019899,2]
[378831369,1755043838093,-500.0,0.00019899,2]
[378831371,1755043838103,-1281.36013797,0.000199,2]
[378831373,1755043838114,-167.476754,0.000199,2]
[378831375,1755043838123,-167.476754,0.000199,2]
[378831377,1755043838133,-151.0,0.000199,2]
[378831379,1755043838143,-151.0,0.000199,2]
[378831381,1755043838153,-920.0,0.000199,2]
[378831383,1755043838163,-151.0,0.000199,2]
[378831384,1755043838172,-152.89904,0.000199,2]
[378831385,1755043838182,-151.0,0.000199,2]
[378831386,1755043838192,-151.0,0.000199,2]
[378831387,1755043838201,-151.0,0.000199,2]
[378831388,1755043838210,-151.0,0.000199,2]
[378831389,1755043838221,-151.0,0.000199,2]
[378831390,1755043838231,-151.0,0.000199,2]
[378831391,1755043838240,-153.182065,0.000199,2]
[378831392,1755043838250,-151.0,0.000199,2]
[378831393,1755043838259,-151.0,0.000199,2]
[378831394,1755043838268,-151.566186,0.000199,2]
[378831395,1755043838277,-151.0,0.000199,2]
[378831396,1755043838286,-151.0,0.000199,2]
[378831397,1755043838296,-151.0,0.000199,2]
[378831398,1755043838306,-151.0,0.000199,2]
[378831399,1755043838315,-151.0,0.000199,2]
[378831400,1755043838324,-151.0,0.000199,2]
[378831401,1755043838333,-151.0,0.000199,2]
[378831402,1755043838343,-590.0,0.000199,2]
[378831403,1755043838352,-916.0,0.000199,2]
[378831404,1755043838361,-241.74788118,0.000199,2]
[378831405,1755043838370,-151.0,0.000199,2]
[378831406,1755043838379,-151.0,0.000199,2]
[378831407,1755043838390,-204.71729665,0.000199,2]
[378831408,1755043838399,-151.0,0.000199,2]
[378831409,1755043838409,-151.0,0.000199,2]
[378831410,1755043838419,-151.0,0.000199,2]
[378831411,1755043838428,-151.0,0.000199,2]
[378831412,1755043838437,-151.0,0.000199,2]
[378831413,1755043838446,-151.0,0.000199,2]
[378831414,1755043838455,-151.0,0.000199,2]
[378831415,1755043838464,-274.064364,0.000199,2]
[378831416,1755043838473,-151.0,0.000199,2]
[378831417,1755043838483,-151.0,0.000199,2]
[378831418,1755043838491,-151.0,0.000199,2]
[378831419,1755043838500,-47645.91543882,0.000199,2]
[378831420,1755043838510,-227.829166,0.000199,2]
[378831421,1755043838519,-227.829166,0.000199,2]
[378831423,1755043838529,-227.829166,0.000199,2]
[378831425,1755043838538,-227.829166,0.000199,2]
[378831427,1755043838547,-220.99912319,0.000199,2]
[378831429,1755043838557,-203.926641,0.000199,2]
[378831431,1755043838571,-254.0903166,0.000199,2]
[378831447,1755043838717,-203.926641,0.000199,2]
[378831449,1755043838731,-151.0,0.000199,2]
[378831451,1755043838740,-203.926641,0.000199,2]
[378831453,1755043838749,-203.926641,0.000199,2]
[378831455,1755043838758,-151.0,0.000199,2]
[378831457,1755043838767,-151.0,0.000199,2]
[378831459,1755043838777,-151.0,0.000199,2]
[378831461,1755043838786,-151.0,0.000199,2]
[378831463,1755043838795,-151.0,0.000199,2]